lending/lending_fUSD_20250719
["ID","MTS","AMOUNT","RATE_DAILY","PERIOD"]
[373237035,1752919874860,-1304.87,0.00020273,2]
[373237036,1752919874869,-1009.35,0.00020273,2]
[373237037,1752919874879,-1085.77,0.00020273,2]
[373237038,1752919874887,-677.53,0.00020273,2]
[373237039,1752919874897,-621.85,0.00020273,2]
[373237040,1752919874907,-578.45,0.00020273,2]
[373237041,1752919874916,-480.0,0.00020273,2]
[373237042,1752919874925,-506.06,0.00020273,2]
[373237043,1752919874935,-1106.32,0.00020273,2]
[373237044,1752919874945,-1288.84,0.00020273,2]
[373237045,1752919874955,-505.94,0.00020273,2]
[373237046,1752919874964,-518.09,0.00020273,2]
[373237047,1752919874974,-1483.96,0.00020273,2]
[373237048,1752919874983,-480.0,0.00020273,2]
[373237049,1752919874994,-480.0,0.00020273,2]
[373237050,1752919875003,-233.02339,0.00020273,2]
[373237051,1752919875013,-480.0,0.00020273,2]
[373237052,1752919875023,-480.0,0.00020273,2]
[373237053,1752919875032,-892.94,0.00020273,2]
[373237054,1752919875041,-596.76107154,0.00020273,2]
[373237055,1752919875051,-1122.99,0.00020273,2]
[373237056,1752919875060,-781.22,0.00020273,2]
[373237057,1752919875070,-699.81,0.00020273,2]
[373237058,1752919875079,-480.0,0.00020273,2]
[373237059,1752919875089,-480.0,0.00020273,2]
[373237060,1752919875099,-2398.3,0.00020273,2]
[373237061,1752919875110,-480.0,0.00020273,2]
[373237062,1752919875120,-1143.42,0.00020273,2]
[373237063,1752919875129,-480.0,0.00020273,2]
[373237064,1752919875138,-852.18,0.00020273,2]
[373237065,1752919875148,-539.87,0.00020273,2]
[373237066,1752919875158,-480.0,0.00020273,2]
[373237067,1752919875167,-1158.1,0.00020273,2]
[373237068,1752919875177,-480.0,0.00020273,2]
[373237069,1752919875187,-502.23,0.00020273,2]
[373237070,1752919875197,-545.06,0.00020273,2]
[373237071,1752919875207,-2905.24,0.00020273,2]
[373237072,1752919875217,-1126.02765,0.0002035,2]
[373237073,1752919875228,-150.0,0.00020373,2]
[373237074,1752919875238,-203.0,0.0002038,2]
[373237075,1752919875247,-207.0,0.0002038,2]
[373237076,1752919875258,-480.0,0.00020383,2]
[373237077,1752919875267,-480.0,0.00020383,2]
[373237078,1752919875277,-518.65,0.00020383,2]
[373237079,1752919875286,-3225.72,0.00020383,2]
[373237080,1752919875296,-929.65,0.00020383,2]
[373237081,1752919875306,-546.84,0.00020383,2]
[373237082,1752919875316,-3351.16,0.00020383,2]
[373237083,1752919875326,-3462.2,0.00020383,2]
[373237084,1752919875335,-480.0,0.00020383,2]
[373237085,1752919875344,-3220.57,0.00020383,2]
[373237086,1752919875354,-877.62,0.00020383,2]
[373237087,1752919875365,-480.0,0.00020383,2]
[373237088,1752919875375,-522.59,0.00020383,2]
[373237089,1752919875385,-611.8,0.00020383,2]
[373237090,1752919875396,-992.53,0.00020383,2]
[373237091,1752919875406,-685.01,0.00020383,2]
[373237092,1752919875416,-588.9,0.00020383,2]
[373237093,1752919875427,-1637.825904,0.00020383,2]
[373237094,1752919875437,-1571.285944,0.00020383,2]
[373237095,1752919875447,-480.0,0.00020383,2]
[373237096,1752919875456,-2233.87,0.00020383,2]
[373237097,1752919875466,-851.61,0.00020383,2]
[373237098,1752919875476,-718.81,0.00020383,2]
[373237099,1752919875486,-480.0,0.00020383,2]
[373237100,1752919875496,-1358.36,0.00020383,2]
[373237101,1752919875508,-480.0,0.00020383,2]
[373237102,1752919875518,-1477.64,0.00020383,2]
[373237103,1752919875527,-646.65,0.00020383,2]
[373237104,1752919875537,-192.44200189,0.00020383,2]
[373237105,1752919875547,-480.0,0.00020383,2]
[373237106,1752919875557,-482.5,0.00020383,2]
[373237107,1752919875566,-480.0,0.00020383,2]
[373237108,1752919875575,-1030.46,0.00020383,2]
[373237109,1752919875585,-1186.415593,0.00020383,2]
[373237110,1752919875595,-602.24,0.00020383,2]
[373237111,1752919875604,-480.0,0.00020383,2]
[373237112,1752919875614,-583.76273092,0.00020383,2]
[373237113,1752919875623,-480.0,0.00020383,2]
[373237114,1752919875633,-480.0,0.00020383,2]
[373237115,1752919875642,-1659.56,0.00020383,2]
[373237116,1752919875652,-658.15,0.00020383,2]
[373237117,1752919875662,-480.0,0.00020383,2]
[373237118,1752919875671,-676.84,0.00020383,2]
[373237119,1752919875680,-480.0,0.00020383,2]
[373237120,1752919875690,-480.0,0.00020383,2]
[373237121,1752919875699,-194.77,0.00020383,2]
[373237122,1752919875710,-1120.43,0.00020383,2]
[373237123,1752919875721,-1947.23,0.00020383,2]
[373237124,1752919875731,-837.04,0.00020383,2]
[373237125,1752919875740,-1479.44,0.00020383,2]
[373237126,1752919875750,-480.0,0.00020383,2]
[373237127,1752919875763,-1240.19,0.00020383,2]
[373237128,1752919875773,-1104.98,0.00020383,2]
[373237129,1752919875783,-1213.06,0.00020383,2]
[373237130,1752919875792,-1325.85,0.00020383,2]
[373237131,1752919875802,-480.0,0.00020383,2]
[373237132,1752919875811,-480.0,0.00020383,2]
[373237133,1752919875821,-354.9,0.00020383,2]
[373237134,1752919875833,-495.17,0.00020383,2]
[373237135,1752919875843,-602.67,0.00020383,2]
[373237136,1752919875852,-1656.17,0.00020383,2]
[373237137,1752919875862,-480.0,0.00020383,2]
[373237138,1752919875872,-2682.58,0.00020383,2]
[373237139,1752919875882,-955.39,0.00020383,2]
[373237140,1752919875891,-2820.87,0.00020383,2]
[373237141,1752919875901,-824.58,0.00020383,2]
[373237142,1752919875913,-480.0,0.00020383,2]
[373237143,1752919875923,-480.0,0.00020383,2]
[373237144,1752919875933,-1507.25,0.00020383,2]
[373237145,1752919875942,-255.23491574,0.00020383,2]
[373237146,1752919875952,-1304.87,0.00020383,2]
[373237147,1752919875962,-1820.5,0.00020383,2]
[373237148,1752919875972,-1009.35,0.00020383,2]
[373237149,1752919875982,-1085.77,0.00020383,2]
[373237150,1752919875991,-677.53,0.00020383,2]
[373237151,1752919876001,-621.85,0.00020383,2]
[373237152,1752919876012,-578.45,0.00020383,2]
[373237153,1752919876021,-311.05447197,0.00020383,2]
[373237154,1752919876031,-506.06,0.00020383,2]
[373237155,1752919876040,-1106.32,0.00020383,2]
[373237156,1752919876049,-1288.84,0.00020383,2]
[373237157,1752919876059,-505.94,0.00020383,2]
[373237158,1752919876068,-518.09,0.00020383,2]
[373237159,1752919876077,-1483.96,0.00020383,2]
[373237160,1752919876086,-480.0,0.00020383,2]
[373237161,1752919876096,-480.0,0.00020383,2]
[373237162,1752919876105,-480.0,0.00020383,2]
[373237163,1752919876115,-480.0,0.00020383,2]
[373237164,1752919876124,-892.94,0.00020383,2]
[373237165,1752919876133,-781.22,0.00020383,2]
[373237166,1752919876143,-1122.99,0.00020383,2]
[373237167,1752919876153,-699.81,0.00020383,2]
[373237168,1752919876162,-480.0,0.00020383,2]
[373237169,1752919876172,-480.0,0.00020383,2]
[373237170,1752919876181,-2398.3,0.00020383,2]
[373237171,1752919876190,-480.0,0.00020383,2]
[373237172,1752919876200,-1143.42,0.00020383,2]
[373237173,1752919876209,-480.0,0.00020383,2]
[373237174,1752919876219,-852.18,0.00020383,2]
[373237175,1752919876229,-539.87,0.00020383,2]
[373237176,1752919876239,-480.0,0.00020383,2]
[373237177,1752919876249,-1158.1,0.00020383,2]
[373237178,1752919876260,-480.0,0.00020383,2]
[373237179,1752919876270,-502.23,0.00020383,2]
[373237180,1752919876279,-545.06,0.00020383,2]
[373237181,1752919876289,-4053.34,0.000204,2]
[373237182,1752919876299,-2505.62,0.00020403,2]
[373237183,1752919876308,-1000.0,0.00020404,2]
[373237184,1752919876318,-2501.21,0.00020439,2]
[373237185,1752919876327,-942.8834785,0.00020442,2]
[373237186,1752919876337,-177.54,0.00020442,2]
[373237187,1752919876347,-152.6150827,0.0002045,2]
[373237188,1752919876356,-1000.0,0.00020456,2]
[373237189,1752919876366,-1000.0,0.00020459,2]
[373237190,1752919876375,-20000.0,0.0002046,7]
[373237191,1752919876384,-1000.0,0.00020467,2]
[373237192,1752919876394,-4214.94,0.00020481,2]
[373237193,1752919876404,-543.22178334,0.00020493,2]
[373237194,1752919876413,-480.0,0.00020493,2]
[373237195,1752919876422,-518.65,0.00020493,2]
[373237196,1752919876431,-3225.72,0.00020493,2]
[373237197,1752919876440,-929.65,0.00020493,2]
[373237198,1752919876449,-546.84,0.00020493,2]
[373237199,1752919876459,-3351.16,0.00020493,2]
[373237200,1752919876468,-3462.2,0.00020493,2]
[373237201,1752919876477,-480.0,0.00020493,2]
[373237202,1752919876486,-3220.57,0.00020493,2]
[373237203,1752919876495,-877.62,0.00020493,2]
[373237204,1752919876506,-480.0,0.00020493,2]
[373237205,1752919876515,-522.59,0.00020493,2]
[373237206,1752919876525,-611.8,0.00020493,2]
[373237207,1752919876534,-992.53,0.00020493,2]
[373237208,1752919876544,-685.01,0.00020493,2]
[373237209,1752919876554,-588.9,0.00020493,2]
[373237210,1752919876564,-1637.825904,0.00020493,2]
[373237211,1752919876574,-1571.285944,0.00020493,2]
[373237212,1752919876583,-480.0,0.00020493,2]
[373237213,1752919876595,-2233.87,0.00020493,2]
[373237214,1752919876604,-851.61,0.00020493,2]
[373237215,1752919876614,-718.81,0.00020493,2]
[373237216,1752919876623,-480.0,0.00020493,2]
[373237217,1752919876690,-1358.36,0.00020493,2]
[373237218,1752919876700,-480.0,0.00020493,2]
[373237219,1752919876709,-1477.64,0.00020493,2]
[373237220,1752919876719,-646.65,0.00020493,2]
[373237221,1752919876728,-480.0,0.00020493,2]
[373237222,1752919876738,-482.5,0.00020493,2]
[373237223,1752919876747,-480.0,0.00020493,2]
[373237224,1752919876758,-1030.46,0.00020493,2]
[373237225,1752919876767,-602.24,0.00020493,2]
[373237226,1752919876777,-480.0,0.00020493,2]
[373237227,1752919876786,-1186.415593,0.00020493,2]
[373237228,1752919876795,-480.0,0.00020493,2]
[373237229,1752919876805,-480.0,0.00020493,2]
[373237230,1752919876814,-1659.56,0.00020493,2]
[373237231,1752919876823,-658.15,0.00020493,2]
[373237232,1752919876834,-480.0,0.00020493,2]
[373237233,1752919876844,-676.84,0.00020493,2]
[373237234,1752919876853,-480.0,0.00020493,2]
[373237235,1752919876862,-151.0,0.00020493,2]
[373237236,1752919876872,-480.0,0.00020493,2]
[373237237,1752919876882,-1120.43,0.00020493,2]
[373237238,1752919876892,-837.04,0.00020493,2]
[373237239,1752919876902,-1947.23,0.00020493,2]
[373237240,1752919876912,-1479.44,0.00020493,2]
[373237241,1752919876922,-480.0,0.00020493,2]
[373237242,1752919876931,-1240.19,0.00020493,2]
[373237243,1752919876941,-1104.98,0.00020493,2]
[373237244,1752919876950,-1213.06,0.00020493,2]
[373237245,1752919876960,-1325.85,0.00020493,2]
[373237246,1752919876968,-480.0,0.00020493,2]
[373237247,1752919876978,-541.66,0.00020493,2]
[373237248,1752919876988,-495.17,0.00020493,2]
[373237249,1752919876997,-602.67,0.00020493,2]
[373237250,1752919877007,-1656.17,0.00020493,2]
[373237251,1752919877016,-480.0,0.00020493,2]
[373237252,1752919877026,-2682.58,0.00020493,2]
[373237253,1752919877035,-955.39,0.00020493,2]
[373237254,1752919877044,-2820.87,0.00020493,2]
[373237255,1752919877054,-824.58,0.00020493,2]
[373237256,1752919877063,-501.44,0.00020493,2]
[373237257,1752919877073,-297.58737062,0.00020493,2]
[373237258,1752919877082,-1507.25,0.00020493,2]
[373237259,1752919877091,-1304.87,0.00020493,2]
[373237260,1752919877100,-1820.5,0.00020493,2]
[373237261,1752919877110,-1009.35,0.00020493,2]
[373237262,1752919877119,-1085.77,0.00020493,2]
[373237263,1752919877128,-677.53,0.00020493,2]
[373237264,1752919877137,-621.85,0.00020493,2]
[373237265,1752919877146,-578.45,0.00020493,2]
[373237266,1752919877156,-506.06,0.00020493,2]
[373237267,1752919877165,-1106.32,0.00020493,2]
[373237268,1752919877175,-1288.84,0.00020493,2]
[373237269,1752919877185,-505.94,0.00020493,2]
[373237270,1752919877194,-518.09,0.00020493,2]
[373237271,1752919877204,-1483.96,0.00020493,2]
[373237272,1752919877213,-480.0,0.00020493,2]
[373237273,1752919877224,-480.0,0.00020493,2]
[373237274,1752919877233,-480.0,0.00020493,2]
[373237275,1752919877243,-480.0,0.00020493,2]
[373237276,1752919877252,-892.94,0.00020493,2]
[373237277,1752919877263,-781.22,0.00020493,2]
[373237278,1752919877272,-1122.99,0.00020493,2]
[373237279,1752919877281,-699.81,0.00020493,2]
[373237280,1752919877290,-480.0,0.00020493,2]
[373237281,1752919877300,-480.0,0.00020493,2]
[373237282,1752919877310,-2398.3,0.00020493,2]
[373237283,1752919877319,-480.0,0.00020493,2]
[373237284,1752919877328,-1143.42,0.00020493,2]
[373237285,1752919877338,-480.0,0.00020493,2]
[373237286,1752919877347,-852.18,0.00020493,2]
[373237287,1752919877357,-539.87,0.00020493,2]
[373237288,1752919877366,-1158.1,0.00020493,2]
[373237289,1752919877376,-480.0,0.00020493,2]
[373237290,1752919877386,-480.0,0.00020493,2]
[373237291,1752919877396,-502.23,0.00020493,2]
[373237292,1752919877406,-545.06,0.00020493,2]
[373237293,1752919877416,-264.550776,0.00020493,2]
[373237294,1752919877426,-2000.0,0.000205,2]
[373237295,1752919877436,-476.80070012,0.000205,7]
[373237296,1752919877445,-210.82967408,0.000205,7]
[373237297,1752919877455,-500.0,0.00020509,2]
[373237298,1752919877464,-2525.0,0.00020509,2]
[373237299,1752919877473,-870.0,0.00020509,2]
[373237300,1752919877483,-375.0,0.00020509,2]
[373237301,1752919877492,-616.0,0.00020509,2]
[373237302,1752919877502,-616.0,0.00020509,2]
[373237303,1752919877512,-152.0,0.00020509,3]
[373237304,1752919877521,-151.0,0.0002051,2]
[373237305,1752919877530,-2501.21,0.00020526,2]
[373237306,1752919877539,-25000.0,0.00020531,2]
[373237307,1752919877548,-298.374402,0.00020531,2]
[373237308,1752919877558,-298.374402,0.00020531,2]
[373237309,1752919877567,-324.19,0.00020554,2]
[373237310,1752919877576,-1000.0,0.00020558,2]
[373237311,1752919877586,-8808.6459191,0.00020559,2]
[373237312,1752919877595,-151.0,0.00020559,2]
[373237313,1752919877605,-1805.64267144,0.00020561,2]
[373237314,1752919877614,-150.0,0.00020573,2]
[373237315,1752919877623,-150.0,0.00020601,2]
[373237316,1752919877632,-480.30414617,0.00020602,2]
[373237317,1752919877641,-518.65,0.00020602,2]
[373237318,1752919877650,-3225.72,0.00020602,2]
[373237319,1752919877660,-929.65,0.00020602,2]
[373237320,1752919877669,-546.84,0.00020602,2]
[373237321,1752919877678,-3351.16,0.00020602,2]
[373237322,1752919877690,-3462.2,0.00020602,2]
[373237323,1752919877711,-480.0,0.00020602,2]
[373237324,1752919877731,-3220.57,0.00020602,2]
[373237325,1752919877753,-877.62,0.00020602,2]
[373237326,1752919877780,-480.0,0.00020602,2]
[373237327,1752919877803,-522.59,0.00020602,2]
[373237328,1752919877825,-611.8,0.00020602,2]
[373237329,1752919877846,-992.53,0.00020602,2]
[373237330,1752919877868,-685.01,0.00020602,2]
[373237331,1752919877889,-588.9,0.00020602,2]
[373237332,1752919877910,-480.0,0.00020602,2]
[373237333,1752919877932,-2233.87,0.00020602,2]
[373237334,1752919877953,-851.61,0.00020602,2]
[373237335,1752919877974,-718.81,0.00020602,2]
[373237336,1752919877995,-480.0,0.00020602,2]
[373237337,1752919878022,-1358.36,0.00020602,2]
[373237338,1752919878049,-1477.64,0.00020602,2]
[373237339,1752919878075,-646.65,0.00020602,2]
[373237340,1752919878105,-480.0,0.00020602,2]
[373237341,1752919878128,-482.5,0.00020602,2]
[373237342,1752919878138,-480.0,0.00020602,2]
[373237343,1752919878147,-1030.46,0.00020602,2]
[373237344,1752919878156,-602.24,0.00020602,2]
[373237345,1752919878165,-480.0,0.00020602,2]
[373237346,1752919878175,-480.0,0.00020602,2]
[373237347,1752919878184,-480.0,0.00020602,2]
[373237348,1752919878194,-1659.56,0.00020602,2]
[373237349,1752919878204,-658.15,0.00020602,2]
[373237350,1752919878214,-480.0,0.00020602,2]
[373237351,1752919878224,-676.84,0.00020602,2]
[373237352,1752919878234,-480.0,0.00020602,2]
[373237353,1752919878244,-480.0,0.00020602,2]
[373237354,1752919878254,-1120.43,0.00020602,2]
[373237355,1752919878264,-837.04,0.00020602,2]
[373237356,1752919878275,-1947.23,0.00020602,2]
[373237357,1752919878286,-1479.44,0.00020602,2]
[373237358,1752919878296,-480.0,0.00020602,2]
[373237359,1752919878306,-1240.19,0.00020602,2]
[373237360,1752919878315,-1104.98,0.00020602,2]
[373237361,1752919878325,-1213.06,0.00020602,2]
[373237362,1752919878335,-480.0,0.00020602,2]
[373237363,1752919878344,-1325.85,0.00020602,2]
[373237364,1752919878354,-495.17,0.00020602,2]
[373237365,1752919878363,-602.67,0.00020602,2]
[373237366,1752919878373,-1656.17,0.00020602,2]
[373237367,1752919878383,-480.0,0.00020602,2]
[373237368,1752919878393,-2682.58,0.00020602,2]
[373237369,1752919878402,-955.39,0.00020602,2]
[373237370,1752919878413,-2820.87,0.00020602,2]
[373237371,1752919878423,-824.58,0.00020602,2]
[373237372,1752919878433,-1507.25,0.00020602,2]
[373237373,1752919878443,-1304.87,0.00020602,2]
[373237374,1752919878453,-1820.5,0.00020602,2]
[373237375,1752919878463,-1009.35,0.00020602,2]
[373237376,1752919878472,-1085.77,0.00020602,2]
[373237377,1752919878482,-677.53,0.00020602,2]
[373237378,1752919878492,-621.85,0.00020602,2]
[373237379,1752919878502,-578.45,0.00020602,2]
[373237380,1752919878513,-506.06,0.00020602,2]
[373237381,1752919878523,-1106.32,0.00020602,2]
[373237382,1752919878532,-1288.84,0.00020602,2]
[373237383,1752919878542,-505.94,0.00020602,2]
[373237384,1752919878551,-518.09,0.00020602,2]
[373237385,1752919878561,-1483.96,0.00020602,2]
[373237386,1752919878570,-480.0,0.00020602,2]
[373237387,1752919878580,-480.0,0.00020602,2]
[373237388,1752919878590,-480.0,0.00020602,2]
[373237389,1752919878600,-480.0,0.00020602,2]
[373237390,1752919878610,-892.94,0.00020602,2]
[373237391,1752919878620,-781.22,0.00020602,2]
[373237392,1752919878630,-1122.99,0.00020602,2]
[373237393,1752919878639,-699.81,0.00020602,2]
[373237394,1752919878649,-480.0,0.00020602,2]
[373237395,1752919878659,-480.0,0.00020602,2]
[373237396,1752919878669,-2398.3,0.00020602,2]
[373237397,1752919878679,-480.0,0.00020602,2]
[373237398,1752919878688,-1143.42,0.00020602,2]
[373237399,1752919878699,-480.0,0.00020602,2]
[373237400,1752919878709,-852.18,0.00020602,2]
[373237401,1752919878723,-539.87,0.00020602,2]
[373237402,1752919878733,-1158.1,0.00020602,2]
[373237403,1752919878742,-480.0,0.00020602,2]
[373237404,1752919878752,-480.0,0.00020602,2]
[373237405,1752919878763,-502.23,0.00020602,2]
[373237406,1752919878773,-545.06,0.00020602,2]
[373237407,1752919878783,-203.0,0.0002062,2]
[373237408,1752919878792,-207.0,0.0002062,2]
[373237409,1752919878802,-174.81812504,0.00020626,2]
[373237410,1752919878811,-600.0,0.00020658,2]
[373237411,1752919878821,-150.0,0.00020669,2]
[373237412,1752919878831,-46909.7513988,0.00020698,2]
[373237413,1752919878843,-21102.23505728,0.000207,2]
[373237414,1752919878853,-518.65,0.00020712,2]
[373237415,1752919878863,-3225.72,0.00020712,2]
[373237416,1752919878873,-929.65,0.00020712,2]
[373237417,1752919878882,-546.84,0.00020712,2]
[373237418,1752919878892,-3351.16,0.00020712,2]
[373237419,1752919878902,-3462.2,0.00020712,2]
[373237420,1752919878915,-480.0,0.00020712,2]
[373237421,1752919878925,-3220.57,0.00020712,2]
[373237422,1752919878935,-877.62,0.00020712,2]
[373237423,1752919878945,-480.0,0.00020712,2]
[373237424,1752919878955,-522.59,0.00020712,2]
[373237425,1752919878964,-611.8,0.00020712,2]
[373237426,1752919878974,-992.53,0.00020712,2]
[373237427,1752919878984,-685.01,0.00020712,2]
[373237428,1752919878994,-588.9,0.00020712,2]
[373237429,1752919879004,-480.0,0.00020712,2]
[373237430,1752919879016,-2233.87,0.00020712,2]
[373237431,1752919879026,-851.61,0.00020712,2]
[373237432,1752919879035,-718.81,0.00020712,2]
[373237433,1752919879046,-480.0,0.00020712,2]
[373237434,1752919879056,-1358.36,0.00020712,2]
[373237435,1752919879066,-1477.64,0.00020712,2]
[373237436,1752919879075,-646.65,0.00020712,2]
[373237437,1752919879086,-480.0,0.00020712,2]
[373237438,1752919879096,-482.5,0.00020712,2]
[373237439,1752919879106,-480.0,0.00020712,2]
[373237440,1752919879115,-1030.46,0.00020712,2]
[373237441,1752919879125,-602.24,0.00020712,2]
[373237442,1752919879135,-480.0,0.00020712,2]
[373237443,1752919879145,-480.0,0.00020712,2]
[373237444,1752919879155,-480.0,0.00020712,2]
[373237445,1752919879165,-1659.56,0.00020712,2]
[373237446,1752919879175,-658.15,0.00020712,2]
[373237447,1752919879185,-480.0,0.00020712,2]
[373237448,1752919879196,-480.0,0.00020712,2]
[373237449,1752919879206,-676.84,0.00020712,2]
[373237450,1752919879216,-480.0,0.00020712,2]
[373237451,1752919879227,-1120.43,0.00020712,2]
[373237452,1752919879237,-837.04,0.00020712,2]
[373237453,1752919879248,-1947.23,0.00020712,2]
[373237454,1752919879258,-1479.44,0.00020712,2]
[373237455,1752919879268,-480.0,0.00020712,2]
[373237456,1752919879277,-1104.98,0.00020712,2]
[373237457,1752919879287,-1240.19,0.00020712,2]
[373237458,1752919879298,-1213.06,0.00020712,2]
[373237459,1752919879308,-480.0,0.00020712,2]
[373237460,1752919879317,-1325.85,0.00020712,2]
[373237461,1752919879327,-495.17,0.00020712,2]
[373237462,1752919879337,-602.67,0.00020712,2]
[373237463,1752919879347,-1656.17,0.00020712,2]
[373237464,1752919879357,-480.0,0.00020712,2]
[373237465,1752919879367,-2682.58,0.00020712,2]
[373237466,1752919879376,-955.39,0.00020712,2]
[373237467,1752919879386,-2820.87,0.00020712,2]
[373237468,1752919879396,-824.58,0.00020712,2]
[373237469,1752919879406,-1507.25,0.00020712,2]
[373237470,1752919879416,-1304.87,0.00020712,2]
[373237471,1752919879425,-1820.5,0.00020712,2]
[373237472,1752919879435,-1009.35,0.00020712,2]
[373237473,1752919879445,-1085.77,0.00020712,2]
[373237474,1752919879455,-677.53,0.00020712,2]
[373237475,1752919879464,-621.85,0.00020712,2]
[373237476,1752919879473,-578.45,0.00020712,2]
[373237477,1752919879483,-506.06,0.00020712,2]
[373237478,1752919879493,-1106.32,0.00020712,2]
[373237479,1752919879503,-1288.84,0.00020712,2]
[373237480,1752919879514,-505.94,0.00020712,2]
[373237481,1752919879524,-518.09,0.00020712,2]
[373237482,1752919879534,-1483.96,0.00020712,2]
[373237483,1752919879544,-598.27452502,0.00020712,2]
[373237484,1752919879553,-480.0,0.00020712,2]
[373237485,1752919879563,-480.0,0.00020712,2]
[373237486,1752919879572,-480.0,0.00020712,2]
[373237487,1752919879581,-892.94,0.00020712,2]
[373237488,1752919879591,-781.22,0.00020712,2]
[373237489,1752919879600,-1122.99,0.00020712,2]
[373237490,1752919879610,-699.81,0.00020712,2]
[373237491,1752919879619,-480.0,0.00020712,2]
[373237492,1752919879628,-480.0,0.00020712,2]
[373237493,1752919879638,-2398.3,0.00020712,2]
[373237494,1752919879647,-480.0,0.00020712,2]
[373237495,1752919879657,-1143.42,0.00020712,2]
[373237496,1752919879667,-480.0,0.00020712,2]
[373237497,1752919879677,-852.18,0.00020712,2]
[373237498,1752919879687,-539.87,0.00020712,2]
[373237499,1752919879696,-1158.1,0.00020712,2]
[373237500,1752919879707,-497.79,0.00020712,2]
[373237501,1752919879717,-480.0,0.00020712,2]
[373237502,1752919879726,-502.23,0.00020712,2]
[373237503,1752919879735,-545.06,0.00020712,2]
[373237504,1752919879745,-25000.0,0.00020724,2]
[373237505,1752919879754,-14449.42701954,0.00020748,2]
[373237506,1752919879765,-152.0,0.0002075,4]
[373237507,1752919879775,-2007.84,0.00020754,2]
[373237508,1752919879784,-1000.0,0.00020772,2]
[373237509,1752919879793,-500.0,0.00020783,2]
[373237510,1752919879803,-2525.0,0.00020783,2]
[373237511,1752919879812,-870.0,0.00020783,2]
[373237512,1752919879821,-450.0,0.00020783,2]
[373237513,1752919879832,-616.0,0.00020783,2]
[373237514,1752919879844,-616.0,0.00020783,2]
[373237515,1752919879854,-300.0,0.00020784,2]
[373237516,1752919879864,-20000.0,0.00020788,7]
[373237517,1752919879874,-21802.37673545,0.000208,2]
[373237518,1752919879883,-2953.0476925,0.00020807,2]
[373237519,1752919879893,-1400.0,0.00020808,2]
[373237520,1752919879902,-518.65,0.00020821,2]
[373237521,1752919879912,-3225.72,0.00020821,2]
[373237522,1752919879922,-929.65,0.00020821,2]
[373237523,1752919879932,-546.84,0.00020821,2]
[373237524,1752919879942,-3351.16,0.00020821,2]
[373237525,1752919879951,-3462.2,0.00020821,2]
[373237526,1752919879961,-480.0,0.00020821,2]
[373237527,1752919879970,-3220.57,0.00020821,2]
[373237528,1752919879980,-877.62,0.00020821,2]
[373237529,1752919879989,-410.83584309,0.00020821,2]
[373237530,1752919879999,-522.59,0.00020821,2]
[373237531,1752919880008,-611.8,0.00020821,2]
[373237532,1752919880018,-992.53,0.00020821,2]
[373237533,1752919880027,-685.01,0.00020821,2]
[373237534,1752919880037,-588.9,0.00020821,2]